fUSD/lending_fUSD_20240913
["ID","MTS","AMOUNT","RATE_DAILY","PERIOD"]
[337941684,1726211441122,-500.0,0.00013398,2]
[337941686,1726211441132,-1344.22,0.00013398,2]
[337941688,1726211441141,-500.0,0.00013398,2]
[337941690,1726211441150,-1458.21,0.00013398,2]
[337941692,1726211441159,-500.0,0.00013398,2]
[337941694,1726211441168,-566.19,0.00013398,2]
[337941696,1726211441177,-541.12676314,0.00013398,2]
[337941698,1726211441186,-500.0,0.00013398,2]
[337941700,1726211441195,-1138.63,0.00013398,2]
[337941702,1726211441204,-500.0,0.00013398,2]
[337941704,1726211441213,-584.54,0.00013398,2]
[337941706,1726211441223,-1103.53,0.00013398,2]
[337941708,1726211441232,-500.0,0.00013398,2]
[337941710,1726211441241,-1837.78,0.00013398,2]
[337941711,1726211441250,-1763.3,0.00013398,2]
[337941713,1726211441259,-500.0,0.00013398,2]
[337941715,1726211441268,-1119.25,0.00013398,2]
[337941717,1726211441277,-2999.27,0.00013398,2]
[337941719,1726211441286,-1274.34,0.00013398,2]
[337941721,1726211441295,-500.0,0.00013398,2]
[337941723,1726211441305,-1999.95,0.00013398,2]
[337941725,1726211441314,-500.0,0.00013398,2]
[337941727,1726211441324,-542.45,0.00013398,2]
[337941729,1726211441333,-980.7,0.00013398,2]
[337941730,1726211441343,-986.58,0.00013398,2]
[337941732,1726211441352,-500.0,0.00013398,2]
[337941733,1726211441363,-1111.51,0.00013398,2]
[337941735,1726211441372,-1060.41,0.00013398,2]
[337941737,1726211441381,-500.0,0.00013398,2]
[337941739,1726211441391,-1122.48,0.00013398,2]
[337941741,1726211441400,-500.0,0.00013398,2]
[337941743,1726211441409,-500.0,0.00013398,2]
[337941744,1726211441419,-931.16,0.00013398,2]
[337941746,1726211441428,-811.86,0.00013398,2]
[337941748,1726211441437,-613.78,0.00013398,2]
[337941750,1726211441447,-1825.05,0.00013398,2]
[337941752,1726211441456,-1463.41,0.00013398,2]
[337941754,1726211441465,-500.0,0.00013398,2]
[337941756,1726211441474,-500.0,0.00013398,2]
[337941758,1726211441485,-500.0,0.00013398,2]
[337941760,1726211441494,-1884.53,0.00013398,2]
[337941762,1726211441503,-500.0,0.00013398,2]
[337941763,1726211441512,-856.77,0.00013398,2]
[337941765,1726211441521,-806.81,0.00013398,2]
[337941767,1726211441530,-500.0,0.00013398,2]
[337941769,1726211441540,-2716.33,0.00013398,2]
[337941771,1726211441549,-1311.53,0.00013398,2]
[337941773,1726211441558,-2790.0,0.00013398,2]
[337941775,1726211441568,-500.0,0.00013398,2]
[337941777,1726211441577,-2144.74,0.00013398,2]
[337941779,1726211441586,-1055.27,0.00013398,2]
[337941781,1726211441595,-1446.11,0.00013398,2]
[337941783,1726211441604,-1131.26,0.00013398,2]
[337941785,1726211441613,-1457.6,0.00013398,2]
[337941787,1726211441622,-1078.41,0.00013398,2]
[337941788,1726211441630,-1545.4,0.00013398,2]
[337941790,1726211441639,-500.0,0.00013398,2]
[337941792,1726211441649,-500.0,0.00013398,2]
[337941794,1726211441658,-1123.82,0.00013398,2]
[337941796,1726211441667,-1457.93,0.00013398,2]
[337941798,1726211441677,-998.82,0.00013398,2]
[337941800,1726211441687,-1642.58,0.00013398,2]
[337941802,1726211441696,-520.9,0.00013398,2]
[337941804,1726211441705,-2154.27,0.00013398,2]
[337941806,1726211441714,-1275.76,0.00013399,2]
[337941808,1726211441724,-2255.32,0.00013399,2]
[337941810,1726211441733,-774.21,0.00013399,2]
[337941812,1726211441743,-837.24,0.00013399,2]
[337941814,1726211441752,-1131.41,0.00013399,2]
[337941816,1726211441761,-1101.62,0.00013399,2]
[337941817,1726211441770,-1159.48,0.00013399,2]
[337941819,1726211441779,-1011.18,0.00013399,2]
[337941821,1726211441788,-1005.44,0.00013399,2]
[337941823,1726211441797,-746.81,0.00013399,2]
[337941825,1726211441806,-731.86,0.00013399,2]
[337941827,1726211441815,-500.0,0.00013399,2]
[337941829,1726211441825,-500.0,0.00013399,2]
[337941831,1726211441834,-814.09,0.00013399,2]
[337941833,1726211441844,-2092.84,0.00013399,2]
[337941835,1726211441853,-500.0,0.00013399,2]
[337941837,1726211441864,-1750.7,0.00013399,2]
[337941839,1726211441876,-767.28,0.00013399,2]
[337941841,1726211441885,-1457.18,0.00013399,2]
[337941843,1726211441895,-500.0,0.00013399,2]
[337941845,1726211441904,-560.26,0.00013399,2]
[337941846,1726211441913,-1089.06,0.00013399,2]
[337941848,1726211441924,-657.09,0.00013399,2]
[337941850,1726211441933,-323.21063067,0.00013399,2]
[337941852,1726211441943,-1188.83,0.00013399,2]
[337941854,1726211441953,-500.0,0.00013399,2]
[337941856,1726211441964,-1092.58,0.00013399,2]
[337941858,1726211441973,-850.78,0.00013399,2]
[337941860,1726211441983,-500.0,0.00013399,2]
[337941861,1726211441992,-500.0,0.00013399,2]
[337941863,1726211442001,-973.52,0.00013399,2]
[337941865,1726211442010,-500.0,0.00013399,2]
[337941867,1726211442019,-1552.35,0.00013399,2]
[337941869,1726211442028,-929.5,0.00013399,2]
[337941871,1726211442037,-500.0,0.00013399,2]
[337941873,1726211442047,-1397.43,0.00013399,2]
[337941875,1726211442056,-500.0,0.00013399,2]
[337941877,1726211442065,-500.0,0.00013399,2]
[337941879,1726211442074,-843.98,0.00013399,2]
[337941880,1726211442083,-621.16383912,0.00013399,2]
[337941882,1726211442093,-500.0,0.00013399,2]
[337941884,1726211442102,-2025.97,0.00013399,2]
[337941886,1726211442111,-500.0,0.00013399,2]
[337941888,1726211442120,-1074.69,0.00013399,2]
[337941890,1726211442129,-658.78,0.00013399,2]
[337941892,1726211442139,-611.46,0.00013399,2]
[337941894,1726211442148,-786.43,0.00013399,2]
[337941896,1726211442157,-609.9,0.00013399,2]
[337941897,1726211442166,-500.0,0.00013399,2]
[337941899,1726211442176,-1440.01,0.00013399,2]
[337941901,1726211442185,-500.0,0.00013399,2]
[337941903,1726211442195,-781.08,0.00013399,2]
[337941905,1726211442204,-1110.94,0.00013399,2]
[337941907,1726211442213,-1160.67,0.00013399,2]
[337941909,1726211442223,-991.7,0.00013399,2]
[337941911,1726211442232,-1110.0,0.00013399,2]
[337941913,1726211442245,-1376.66,0.00013399,2]
[337941915,1726211442255,-1261.0,0.0001344,2]
[337941917,1726211442264,-558.0,0.0001344,2]
[337941918,1726211442273,-932.0,0.0001344,2]
[337941920,1726211442283,-810.0,0.0001344,2]
[337941922,1726211442292,-553.0,0.0001344,2]
[337941924,1726211442302,-1948.634,0.0001344,2]
[337941926,1726211442311,-248.0,0.0001344,2]
[337941928,1726211442321,-893.019,0.0001344,2]
[337941930,1726211442331,-150.0,0.0001344,2]
[337941932,1726211442340,-1079.0,0.0001344,2]
[337941933,1726211442350,-2060.72155041,0.00013442,2]
[337941935,1726211442359,-500.0,0.00013496,2]
[337941937,1726211442369,-500.0,0.00013496,2]
[337941939,1726211442378,-500.0,0.00013496,2]
[337941941,1726211442388,-500.0,0.00013496,2]
[337941943,1726211442397,-515.07,0.00013496,2]
[337941945,1726211442407,-584.67,0.00013496,2]
[337941947,1726211442416,-500.0,0.00013496,2]
[337941949,1726211442426,-527.91,0.00013496,2]
[337941950,1726211442435,-969.26,0.00013496,2]
[337941952,1726211442444,-500.0,0.00013496,2]
[337941954,1726211442454,-500.0,0.00013496,2]
[337941956,1726211442464,-500.0,0.00013496,2]
[337941958,1726211442472,-1181.76,0.00013496,2]
[337941960,1726211442481,-500.0,0.00013496,2]
[337941962,1726211442491,-500.0,0.00013496,2]
[337941964,1726211442500,-500.0,0.00013496,2]
[337941965,1726211442509,-500.0,0.00013496,2]
[337941967,1726211442518,-227.29155199,0.00013496,2]
[337941968,1726211442527,-500.0,0.00013496,2]
[337941969,1726211442536,-500.0,0.00013496,2]
[337941970,1726211442545,-513.56,0.00013496,2]
[337941971,1726211442554,-500.0,0.00013496,2]
[337941972,1726211442563,-500.0,0.00013496,2]
[337941973,1726211442572,-911.38,0.00013496,2]
[337941974,1726211442581,-1110.14,0.00013496,2]
[337941975,1726211442590,-955.45,0.00013496,2]
[337941976,1726211442599,-965.76377444,0.00013496,2]
[337941977,1726211442616,-1811.82622556,0.00013496,2]
[337941978,1726211442626,-2321.76,0.00013496,2]
[337941979,1726211442635,-500.0,0.00013496,2]
[337941980,1726211442644,-500.0,0.00013496,2]
[337941981,1726211442653,-500.0,0.00013496,2]
[337941982,1726211442662,-1020.24,0.00013496,2]
[337941983,1726211442672,-977.53,0.00013496,2]
[337941984,1726211442681,-1927.45,0.00013496,2]
[337941985,1726211442691,-1015.34,0.00013496,2]
[337941986,1726211442700,-1417.53,0.00013496,2]
[337941987,1726211442710,-1033.42,0.00013496,2]
[337941988,1726211442719,-602.24,0.00013496,2]
[337941990,1726211442728,-1278.08,0.00013496,2]
[337941991,1726211442738,-23544.17,0.00013496,2]
[337941993,1726211442747,-1633.78,0.00013496,2]
[337941995,1726211442756,-1563.23,0.00013496,2]
[337941997,1726211442765,-500.0,0.00013496,2]
[337941999,1726211442774,-1206.34,0.00013496,2]
[337942001,1726211442784,-500.0,0.00013496,2]
[337942002,1726211442793,-2188.0,0.00013496,2]
[337942004,1726211442802,-1031.72,0.00013496,2]
[337942006,1726211442811,-1242.28,0.00013496,2]
[337942008,1726211442820,-500.0,0.00013496,2]
[337942010,1726211442829,-1070.81,0.00013496,2]
[337942012,1726211442839,-500.0,0.00013496,2]
[337942014,1726211442848,-3828.03,0.00013496,2]
[337942016,1726211442857,-4063.98,0.00013496,2]
[337942018,1726211442865,-1622.55,0.00013496,2]
[337942020,1726211442876,-15498.81,0.00013496,2]
[337942022,1726211442885,-1449.8,0.00013496,2]
[337942024,1726211442895,-1028.45,0.00013496,2]
[337942026,1726211442903,-2344.87,0.00013496,2]
[337942028,1726211442912,-554.23,0.00013496,2]
[337942029,1726211442922,-733.29,0.00013496,2]
[337942031,1726211442931,-500.0,0.00013496,2]
[337942033,1726211442940,-500.0,0.00013496,2]
[337942035,1726211442950,-522.51,0.00013496,2]
[337942037,1726211442959,-566.14,0.00013496,2]
[337942039,1726211442968,-500.0,0.00013496,2]
[337942041,1726211442978,-607.49,0.00013496,2]
[337942043,1726211442987,-500.0,0.00013496,2]
[337942045,1726211442996,-1939.97,0.00013496,2]
[337942047,1726211443005,-21956.47,0.00013496,2]
[337942049,1726211443014,-1170.0,0.00013496,2]
[337942051,1726211443023,-3158.27,0.00013496,2]
[337942053,1726211443033,-1303.3,0.00013496,2]
[337942055,1726211443042,-862.43,0.00013497,2]
[337942057,1726211443051,-844.72,0.00013497,2]
[337942059,1726211443060,-500.0,0.00013497,2]
[337942061,1726211443069,-1480.1,0.00013497,2]
[337942063,1726211443079,-1694.45,0.00013497,2]
[337942065,1726211443088,-2147.43,0.00013497,2]
[337942067,1726211443097,-1417.53,0.00013497,2]
[337942069,1726211443106,-1616.75,0.00013497,2]
[337942070,1726211443115,-500.0,0.00013497,2]
[337942072,1726211443125,-1480.04,0.00013497,2]
[337942074,1726211443134,-2518.9,0.00013497,2]
[337942076,1726211443143,-500.0,0.00013497,2]
[337942078,1726211443153,-1024.42,0.00013497,2]
[337942080,1726211443163,-1990.29,0.00013497,2]
[337942082,1726211443171,-150.0,0.00013501,2]
[337942084,1726211443180,-199.01920922,0.00013526,2]
[337942086,1726211443190,-164.82475148,0.00013573,2]
[337942088,1726211443199,-2060.72155041,0.0001365,2]
[337942090,1726211443208,-500.0,0.0001367,2]
[337942092,1726211443218,-500.0,0.0001367,2]
[337942095,1726211443228,-536.52,0.00013671,2]
[337942097,1726211443238,-3373.18,0.00013671,2]
[337942098,1726211443247,-698.89,0.00013671,2]
[337942100,1726211443256,-500.0,0.00013671,2]
[337942102,1726211443265,-693.66,0.00013671,2]
[337942104,1726211443275,-804.83,0.00013671,2]
[337942106,1726211443284,-500.0,0.00013671,2]
[337942108,1726211443294,-1249.91,0.00013671,2]
[337942110,1726211443303,-2022.51,0.00013671,2]
[337942112,1726211443313,-556.52,0.00013671,2]
[337942114,1726211443322,-1092.18,0.00013671,2]
[337942116,1726211443331,-817.75,0.00013671,2]
[337942118,1726211443340,-4903.41,0.00013671,2]
[337942120,1726211443350,-2017.58,0.00013671,2]
[337942122,1726211443359,-1854.37,0.00013671,2]
[337942124,1726211443369,-1169.18,0.00013671,2]
[337942126,1726211443379,-1411.44,0.00013671,2]
[337942128,1726211443387,-8693.71,0.00013671,2]
[337942130,1726211443396,-2850.56,0.00013671,2]
[337942132,1726211443406,-1265.38,0.00013671,2]
[337942134,1726211443415,-18318.45,0.00013671,2]
[337942136,1726211443424,-4608.9,0.00013671,2]
[337942138,1726211443434,-1092.85,0.00013671,2]
[337942139,1726211443443,-4163.54,0.00013671,2]
[337942141,1726211443453,-1058.05,0.00013671,2]
[337942143,1726211443462,-637.0,0.00013671,2]
[337942144,1726211443471,-2757.38,0.00013671,2]
[337942146,1726211443480,-3436.3,0.00013671,2]
[337942148,1726211443491,-500.0,0.00013671,2]
[337942150,1726211443501,-917.9,0.00013672,2]
[337942152,1726211443510,-500.0,0.00013672,2]
[337942154,1726211443519,-1096.43,0.00013672,2]
[337942156,1726211443529,-1051.83,0.00013672,2]
[337942158,1726211443538,-545.29,0.00013672,2]
[337942160,1726211443548,-500.0,0.00013672,2]
[337942162,1726211443558,-500.0,0.00013672,2]
[337942164,1726211443567,-1005.83,0.00013672,2]
[337942166,1726211443576,-500.0,0.00013672,2]
[337942168,1726211443585,-500.0,0.00013672,2]
[337942169,1726211443594,-624.07,0.00013672,2]
[337942171,1726211443603,-500.0,0.00013672,2]
[337942173,1726211443612,-817.34,0.00013672,2]
[337942175,1726211443621,-500.0,0.00013672,2]
[337942177,1726211443631,-940.61,0.00013672,2]
[337942179,1726211443640,-500.0,0.00013672,2]
[337942181,1726211443649,-500.0,0.00013672,2]
[337942183,1726211443657,-500.0,0.00013672,2]
[337942185,1726211443667,-500.0,0.00013672,2]
[337942187,1726211443675,-1158.35,0.00013672,2]
[337942189,1726211443685,-1137.96,0.00013672,2]
[337942191,1726211443695,-556.39,0.00013672,2]
[337942193,1726211443704,-500.0,0.00013672,2]
[337942195,1726211443712,-422.0323722,0.00013672,2]
[337942196,1726211443722,-1125.64,0.00013672,2]
[337942198,1726211443731,-500.0,0.00013672,2]
[337942200,1726211443744,-500.0,0.00013672,2]
[337942202,1726211443754,-796.34,0.00013672,2]
[337942204,1726211443763,-500.0,0.00013672,2]
[337942206,1726211443773,-500.0,0.00013672,2]
[337942208,1726211443782,-500.0,0.00013672,2]
[337942210,1726211443791,-500.0,0.00013672,2]
[337942212,1726211443800,-500.0,0.00013672,2]
[337942214,1726211443809,-500.0,0.00013672,2]
[337942216,1726211443818,-653.1,0.00013672,2]
[337942218,1726211443827,-854.59,0.00013672,2]
[337942220,1726211443836,-665.1,0.00013672,2]
[337942222,1726211443846,-618.79,0.00013672,2]
[337942224,1726211443856,-1321.47,0.00013672,2]
[337942225,1726211443866,-2063.28,0.00013672,2]
[337942227,1726211443875,-500.0,0.00013672,2]
[337942229,1726211443887,-887.94,0.00013672,2]
[337942231,1726211443896,-500.0,0.00013672,2]
[337942233,1726211443905,-923.87,0.00013672,2]
[337942235,1726211443914,-500.0,0.00013672,2]
[337942237,1726211443924,-500.0,0.00013672,2]
[337942239,1726211443933,-838.8,0.00013672,2]
[337942241,1726211443943,-1377.09,0.00013672,2]
[337942243,1726211443952,-1008.91,0.00013672,2]
[337942245,1726211443961,-591.41,0.00013672,2]
[337942247,1726211443970,-500.0,0.00013672,2]
[337942249,1726211443979,-500.0,0.00013672,2]
[337942250,1726211443989,-640.53,0.00013672,2]
[337942252,1726211443998,-500.0,0.00013672,2]
[337942254,1726211444007,-500.0,0.00013672,2]
[337942256,1726211444016,-628.78,0.00013672,2]
[337942258,1726211444026,-719.66,0.00013672,2]
[337942260,1726211444035,-1063.38,0.00013672,2]
[337942262,1726211444044,-1215.69,0.00013672,2]
[337942264,1726211444053,-500.0,0.00013672,2]
[337942266,1726211444062,-527.47,0.00013672,2]
[337942267,1726211444071,-749.28,0.00013672,2]
[337942269,1726211444080,-757.86,0.00013672,2]
[337942271,1726211444089,-500.0,0.00013672,2]
[337942273,1726211444098,-500.0,0.00013672,2]
[337942275,1726211444107,-610.27,0.00013672,2]
[337942276,1726211444116,-607.23,0.00013672,2]
[337942278,1726211444125,-593.73,0.00013672,2]
[337942280,1726211444135,-669.15,0.00013672,2]
[337942282,1726211444144,-1046.67,0.00013672,2]
[337942284,1726211444153,-2078.44,0.00013672,2]
[337942286,1726211444162,-864.16,0.00013672,2]
[337942288,1726211444172,-500.0,0.00013672,2]
[337942290,1726211444181,-500.0,0.00013672,2]
[337942292,1726211444190,-500.0,0.00013672,2]
[337942293,1726211444200,-500.0,0.00013672,2]
[337942296,1726211444210,-538.61,0.00013672,2]
[337942297,1726211444219,-958.8,0.00013672,2]
[337942299,1726211444228,-500.0,0.00013672,2]
[337942301,1726211444239,-500.0,0.00013672,2]
[337942303,1726211444248,-1249.25,0.00013672,2]
[337942305,1726211444257,-500.0,0.00013672,2]
[337942307,1726211444267,-691.94,0.00013672,2]
[337942309,1726211444276,-460.01403736,0.00013672,2]
[337942311,1726211444286,-3938.68,0.00013672,2]
[337942313,1726211444295,-1571.52,0.00013672,2]
[337942315,1726211444304,-500.0,0.00013672,2]
[337942317,1726211444313,-916.83,0.00013672,2]
[337942318,1726211444323,-948.32,0.00013672,2]
[337942320,1726211444332,-500.0,0.00013672,2]
[337942322,1726211444341,-1567.21,0.00013672,2]
[337942324,1726211444351,-500.0,0.00013672,2]
[337942326,1726211444361,-308.70141604,0.00013672,2]
[337942328,1726211444370,-500.0,0.00013672,2]
[337942330,1726211444379,-500.0,0.00013672,2]
[337942332,1726211444389,-1344.22,0.00013672,2]
[337942334,1726211444398,-500.0,0.00013672,2]
[337942336,1726211444409,-1458.21,0.00013672,2]
[337942338,1726211444418,-500.0,0.00013672,2]
[337942340,1726211444427,-566.19,0.00013672,2]
[337942342,1726211444437,-500.0,0.00013672,2]
[337942344,1726211444446,-1138.63,0.00013672,2]
[337942345,1726211444454,-584.54,0.00013672,2]
[337942347,1726211444463,-1103.53,0.00013672,2]
[337942350,1726211444474,-500.0,0.00013672,2]
[337942351,1726211444485,-500.0,0.00013672,2]
[337942353,1726211444495,-1837.78,0.00013672,2]
[337942355,1726211444504,-1763.3,0.00013672,2]
[337942357,1726211444515,-500.0,0.00013672,2]
[337942359,1726211444524,-1119.25,0.00013672,2]
[337942361,1726211444534,-2999.27,0.00013672,2]
[337942363,1726211444544,-500.0,0.00013672,2]
[337942365,1726211444553,-1274.34,0.00013672,2]
[337942367,1726211444563,-1999.95,0.00013672,2]
[337942369,1726211444572,-500.0,0.00013672,2]
[337942371,1726211444581,-542.45,0.00013672,2]
[337942372,1726211444590,-980.7,0.00013672,2]
[337942374,1726211444600,-986.58,0.00013672,2]
[337942376,1726211444610,-500.0,0.00013672,2]
[337942378,1726211444619,-1111.51,0.00013672,2]
[337942380,1726211444628,-1060.41,0.00013672,2]
[337942382,1726211444638,-500.0,0.00013672,2]
[337942384,1726211444647,-1122.48,0.00013672,2]
[337942386,1726211444656,-500.0,0.00013672,2]
[337942388,1726211444666,-500.0,0.00013672,2]
[337942389,1726211444675,-931.16,0.00013672,2]
[337942391,1726211444685,-811.86,0.00013672,2]
[337942393,1726211444694,-613.78,0.00013672,2]
[337942395,1726211444704,-1825.05,0.00013672,2]
[337942397,1726211444714,-1463.41,0.00013672,2]
[337942399,1726211444723,-500.0,0.00013672,2]
[337942401,1726211444733,-500.0,0.00013672,2]
[337942403,1726211444742,-500.0,0.00013672,2]
[337942405,1726211444751,-1884.53,0.00013672,2]
[337942407,1726211444761,-500.0,0.00013672,2]
[337942409,1726211444770,-856.77,0.00013672,2]
[337942410,1726211444779,-806.81,0.00013672,2]
[337942412,1726211444788,-500.0,0.00013672,2]
[337942414,1726211444798,-2716.33,0.00013672,2]
[337942416,1726211444807,-1311.53,0.00013672,2]
[337942418,1726211444816,-2790.0,0.00013672,2]
[337942420,1726211444826,-500.0,0.00013672,2]
[337942422,1726211444835,-2144.74,0.00013672,2]
[337942424,1726211444845,-1055.27,0.00013672,2]
[337942425,1726211444854,-1446.11,0.00013672,2]
[337942427,1726211444863,-1131.26,0.00013672,2]
[337942429,1726211444874,-1457.6,0.00013672,2]
[337942431,1726211444886,-1078.41,0.00013672,2]
[337942433,1726211444895,-1545.4,0.00013672,2]
[337942435,1726211444904,-500.0,0.00013672,2]
[337942437,1726211444914,-500.0,0.00013672,2]
[337942439,1726211444925,-1123.82,0.00013672,2]
[337942441,1726211444934,-1457.93,0.00013672,2]
[337942443,1726211444943,-998.82,0.00013672,2]
[337942444,1726211444953,-1642.58,0.00013672,2]
[337942446,1726211444963,-520.9,0.00013672,2]
[337942448,1726211444972,-2154.27,0.00013672,2]
[337942450,1726211444981,-1275.76,0.00013673,2]
[337942452,1726211444991,-2255.32,0.00013673,2]
[337942454,1726211445001,-774.21,0.00013673,2]
[337942456,1726211445010,-837.24,0.00013673,2]
[337942458,1726211445019,-1131.41,0.00013673,2]
[337942460,1726211445029,-1101.62,0.00013673,2]
[337942462,1726211445038,-1159.48,0.00013673,2]
[337942464,1726211445047,-1011.18,0.00013673,2]
[337942466,1726211445056,-1005.44,0.00013673,2]
[337942468,1726211445065,-746.81,0.00013673,2]
[337942470,1726211445074,-731.86,0.00013673,2]
[337942471,1726211445083,-500.0,0.00013673,2]
[337942473,1726211445092,-500.0,0.00013673,2]
[337942475,1726211445101,-814.09,0.00013673,2]
[337942488,1726211445218,-2092.84,0.00013673,2]
[337942490,1726211445228,-500.0,0.00013673,2]
[337942491,1726211445239,-1750.7,0.00013673,2]
[337942493,1726211445248,-767.28,0.00013673,2]
[337942495,1726211445258,-1457.18,0.00013673,2]
[337942497,1726211445267,-500.0,0.00013673,2]
[337942499,1726211445276,-560.26,0.00013673,2]
[337942501,1726211445285,-1089.06,0.00013673,2]
[337942503,1726211445294,-657.09,0.00013673,2]
[337942505,1726211445303,-1188.83,0.00013673,2]
[337942507,1726211445312,-500.0,0.00013673,2]
[337942509,1726211445322,-1092.58,0.00013673,2]
[337942511,1726211445331,-850.78,0.00013673,2]
[337942513,1726211445340,-500.0,0.00013673,2]
[337942515,1726211445350,-500.0,0.00013673,2]
[337942517,1726211445360,-973.52,0.00013673,2]
[337942518,1726211445369,-500.0,0.00013673,2]
[337942520,1726211445378,-1552.35,0.00013673,2]
[337942522,1726211445388,-929.5,0.00013673,2]
[337942524,1726211445397,-500.0,0.00013673,2]
[337942526,1726211445407,-1397.43,0.00013673,2]
[337942528,1726211445417,-500.0,0.00013673,2]
[337942530,1726211445427,-500.0,0.00013673,2]
[337942532,1726211445438,-843.98,0.00013673,2]
[337942534,1726211445447,-500.0,0.00013673,2]
[337942536,1726211445458,-2025.97,0.00013673,2]
[337942538,1726211445468,-500.0,0.00013673,2]
[337942540,1726211445477,-1074.69,0.00013673,2]
[337942542,1726211445487,-658.78,0.00013673,2]
[337942544,1726211445497,-611.46,0.00013673,2]
[337942546,1726211445506,-786.43,0.00013673,2]
[337942548,1726211445515,-609.9,0.00013673,2]
[337942549,1726211445525,-500.0,0.00013673,2]
[337942551,1726211445535,-1440.01,0.00013673,2]
[337942553,1726211445543,-500.0,0.00013673,2]
[337942555,1726211445553,-781.08,0.00013673,2]
[337942557,1726211445562,-1110.94,0.00013673,2]
[337942559,1726211445571,-1160.67,0.00013673,2]
[337942562,1726211445580,-991.7,0.00013673,2]
[337942564,1726211445590,-1110.0,0.00013673,2]
[337942566,1726211445599,-1376.66,0.00013673,2]
[337942568,1726211445610,-762.01,0.00013699,2]
[337942570,1726211445621,-2751.0,0.00013699,2]
[337942572,1726211445631,-200.0,0.00013699,2]
[337942574,1726211445641,-176.02,0.00013699,2]
[337942576,1726211445650,-500.0,0.00013699,2]
[337942578,1726211445659,-296.9,0.00013699,2]
[337942580,1726211445668,-1250.0,0.000137,2]
[337942582,1726211445678,-150.0,0.00013712,2]
[337942584,1726211445688,-199.01920922,0.00013755,2]
[337942586,1726211445697,-531.2,0.00013766,2]
[337942588,1726211445706,-500.0,0.0001377,2]
[337942590,1726211445716,-500.0,0.0001377,2]
[337942592,1726211445725,-500.0,0.0001377,2]
[337942594,1726211445735,-500.0,0.0001377,2]
[337942596,1726211445744,-515.07,0.0001377,2]
[337942598,1726211445754,-584.67,0.0001377,2]
[337942600,1726211445763,-500.0,0.0001377,2]
[337942602,1726211445772,-527.91,0.0001377,2]
[337942604,1726211445782,-969.26,0.0001377,2]
[337942606,1726211445791,-500.0,0.0001377,2]
[337942608,1726211445802,-500.0,0.0001377,2]
[337942610,1726211445812,-500.0,0.0001377,2]
[337942612,1726211445823,-1181.76,0.0001377,2]
[337942614,1726211445833,-500.0,0.0001377,2]
[337942616,1726211445842,-607.11145148,0.0001377,2]
[337942618,1726211445853,-500.0,0.0001377,2]
[337942620,1726211445863,-500.0,0.0001377,2]
[337942622,1726211445872,-500.0,0.0001377,2]
[337942624,1726211445885,-500.0,0.0001377,2]
[337942626,1726211445894,-513.56,0.0001377,2]
[337942628,1726211445903,-500.0,0.0001377,2]
[337942630,1726211445912,-500.0,0.0001377,2]
[337942632,1726211445922,-911.38,0.0001377,2]
[337942634,1726211445931,-1110.14,0.0001377,2]